[Event "2nd German Women BLS 2024-25"]
[Site "Germany"]
[Date "2025.01.26"]
[Round "4.9"]
[White "Lukas, Anne"]
[Black "Albayrak, Nese Pinar"]
[Result "1-0"]
[Annotator "NA RC"]
[ECO "D02"]
[WhiteElo "2016"]
[BlackElo "1871"]
[PlyCount "57"]
[EventDate "2025.01.22"]
[EventType "team-tourn"]
[EventCountry "GER"]
[SourceTitle "playchess.com"]
[Source "ChessBase"]
[SourceQuality "1"]
[TimeControl "40/5400+30:1800+30"]

1. Nf3 {[%emt 0:00:02]} Nf6 {[%emt 0:00:07]} 2. g3 {[%emt 0:00:04]} g6 {[%emt 0:00:04]} 3. Bg2 {[%emt 0:00:05]} Bg7 {[%emt 0:00:03]} 4. O-O {[%emt 0:00:05]} d5 {[%emt 0:01:36]} 5. d4 {[%emt 0:00:28]} O-O {[%emt 0:00:26]} 6. h3 {[%emt 0:00:08]} c6 {[%emt 0:02:18]} 7. c4 {[%emt 0:00:15]} Nbd7 {[%emt 0:05:33]} 8. Nc3 {[%emt 0:00:19]} Re8 {[%emt 0:04:10]} 9. cxd5 {[%emt 0:00:44]} cxd5 {[%emt 0:03:46]} 10. Ne5 {[%emt 0:02:10]} Nxe5 {[%emt 0:13:12]} 11. dxe5 {[%emt 0:00:22]} Nd7 {[%emt 0:02:41]} 12. f4 {[%emt 0:00:45]} Qb6+ {[%emt 0:04:28]} 13. Kh2 {[%emt 0:00:06]} e6 {[%emt 0:01:45]} 14. e4 {[%emt 0:01:07]} f6 {[%emt 0:15:19]} 15. exd5 {[%emt 0:02:39]} fxe5 {[%emt 0:00:16]} 16. dxe6 {[%emt 0:00:06]} Nc5 {[%emt 0:07:33]} 17. e7 {[%emt 0:00:30]} exf4 {[%emt 0:02:51]} 18. Nd5 {[%emt 0:03:06]} fxg3+ {[%emt 0:03:58]} 19. Kh1 {[%emt 0:00:45]} Qa5 {[%emt 0:11:43]} 20. b4 {[%emt 0:07:43]} Qa4 {[%emt 0:00:49]} 21. Bh6 {[%emt 0:00:17]} Qxd1 {[%emt 0:05:10]} 22. Raxd1 {[%emt 0:00:02]} Ne6 {[%emt 0:06:01]} 23. Nf6+ {[%emt 0:00:52]} Bxf6 {[%emt 0:00:17]} 24. Rxf6 {[%emt 0:00:01]} Rb8 {[%emt 0:02:12]} 25. Rd8 {[%emt 0:00:29]} Bd7 {[%emt 0:04:43]} 26. Rxd7 {[%emt 0:00:07]} Ng7 {[%emt 0:00:35]} 27. Rf8+ {[%emt 0:00:27]} Rxf8 {[%emt 0:00:03]} 28. exf8=Q+ {[%emt 1:20:46]} Kxf8 {[%emt 0:02:20]} 29. Rxg7 {[%emt 0:00:00]} 1-0

[Event "2nd German Women BLS 2024-25"]
[Site "Germany"]
[Date "2025.01.26"]
[Round "4.10"]
[White "Albayrak, Berrak"]
[Black "Mueller, Manon"]
[Result "1-0"]
[Annotator "NA RC"]
[ECO "A06"]
[WhiteElo "1843"]
[BlackElo "1881"]
[PlyCount "79"]
[EventDate "2025.01.22"]
[EventType "team-tourn"]
[EventCountry "GER"]
[SourceTitle "playchess.com"]
[Source "ChessBase"]
[SourceQuality "1"]
[TimeControl "40/5400+30:1800+30"]

1. Nf3 {[%emt 0:00:04]} d5 {[%emt 0:00:26]} 2. d3 {[%emt 0:00:22]} Nf6 {[%emt 0:00:10]} 3. g3 {[%emt 0:00:31]} c5 {[%emt 0:02:11]} 4. Bg2 {[%emt 0:01:05]} Nc6 {[%emt 0:00:22]} 5. O-O {[%emt 0:03:16]} e6 {[%emt 0:01:23]} 6. Nbd2 {[%emt 0:01:56]} Be7 {[%emt 0:00:24]} 7. e4 {[%emt 0:01:13]} dxe4 {[%emt 0:01:50]} 8. dxe4 {[%emt 0:01:02]} O-O {[%emt 0:00:51]} 9. b3 {[%emt 0:10:44]} Qc7 {[%emt 0:05:42]} 10. Bb2 {[%emt 0:11:03]} Rd8 {[%emt 0:07:40]} 11. Qe2 {[%emt 0:09:25]} a6 {[%emt 0:04:16]} 12. e5 {[%emt 0:09:45]} Ng4 {[%emt 0:10:36]} 13. h3 {[%emt 0:06:06]} Nh6 {[%emt 0:01:08]} 14. g4 {[%emt 0:04:36]} Rb8 {[%emt 0:05:00]} 15. Ne4 {[%emt 0:06:16]} Nd4 {[%emt 0:08:37]} 16. Nxd4 {[%emt 0:04:23]} cxd4 {[%emt 0:00:26]} 17. f4 {[%emt 0:07:51]} b5 {[%emt 0:06:38]} 18. Qd3 {[%emt 0:06:58]} Bb7 {[%emt 0:05:28]} 19. Ng5 {[%emt 0:01:18]} g6 {[%emt 0:00:45]} 20. Bxb7 {[%emt 0:02:11]} Rxb7 {[%emt 0:00:41]} 21. Ne4 {[%emt 0:01:04]} Rb6 {[%emt 0:03:20]} 22. Bxd4 {[%emt 0:03:47]} Rc6 {[%emt 0:03:34]} 23. Rf2 {[%emt 0:01:15]} Bc5 {[%emt 0:19:01]} 24. Nxc5 {[%emt 0:01:10]} Rxc5 {[%emt 0:00:02]} 25. Qe3 {[%emt 0:01:21]} Rcd5 {[%emt 0:02:38]} 26. Bb6 {[%emt 0:02:44]} Rd1+ {[%emt 0:00:35]} 27. Kh2 {[%emt 0:01:12]} Qb7 {[%emt 0:03:54]} 28. Rxd1 {[%emt 0:00:11]} Rxd1 {[%emt 0:00:30]} 29. Rg2 {[%emt 0:00:37]} Kg7 {[%emt 0:02:26]} 30. Bd4 {[%emt 0:00:54]} Qd7 {[%emt 0:01:24]} 31. c3 {[%emt 0:00:40]} Qe7 {[%emt 0:00:51]} 32. Qe2 {[%emt 0:00:38]} Rb1 {[%emt 0:00:39]} 33. Qc2 {[%emt 0:00:27]} Rf1 {[%emt 0:00:56]} 34. Qd3 {[%emt 0:00:28]} Re1 {[%emt 0:01:08]} 35. Bf2 {[%emt 0:00:43]} Rc1 {[%emt 0:00:07]} 36. Be3 {[%emt 0:00:08]} Re1 {[%emt 0:00:15]} 37. Qd2 {[%emt 0:00:22]} Rf1 {[%emt 0:00:55]} 38. f5 {[%emt 0:01:07]} Qh4 {[%emt 0:00:31]} 39. f6+ {[%emt 0:00:21]} Kh8 {[%emt 0:01:50]} 40. Bxh6 {[%emt 0:00:19]} 1-0

[Event "2nd German Women BLS 2024-25"]
[Site "Germany"]
[Date "2025.01.26"]
[Round "4.11"]
[White "Tampe, Friederike"]
[Black "Braeuer, Vanessa"]
[Result "0-1"]
[Annotator "NA RC"]
[ECO "B24"]
[WhiteElo "1767"]
[BlackElo "1935"]
[PlyCount "54"]
[EventDate "2025.01.22"]
[EventType "team-tourn"]
[EventCountry "GER"]
[SourceTitle "playchess.com"]
[Source "ChessBase"]
[SourceQuality "1"]
[TimeControl "40/5400+30:1800+30"]

1. e4 {[%emt 0:00:02]} c5 {[%emt 0:00:22]} 2. Nc3 {[%emt 0:00:06]} Nc6 {[%emt 0:00:15]} 3. g3 {[%emt 0:00:07]} d6 {[%emt 0:01:00]} 4. Bg2 {[%emt 0:00:20]} Nf6 {[%emt 0:00:38]} 5. Nge2 {[%emt 0:00:57]} h5 {[%emt 0:01:36]} 6. d3 {[%emt 0:01:12]} h4 {[%emt 0:01:19]} 7. gxh4 {[%emt 0:08:47]} Rxh4 {[%emt 0:02:27]} 8. Ng3 {[%emt 0:04:23]} Bg4 {[%emt 0:01:28]} 9. f3 {[%emt 0:02:28]} Bh3 {[%emt 0:00:34]} 10. Bxh3 {[%emt 1:17:08]} Rxh3 {[%emt 0:02:37]} 11. Qe2 {[%emt 0:00:00]} Nd4 {[%emt 0:14:22]} 12. Qg2 {[%emt 0:00:00]} Qd7 {[%emt 0:00:42]} 13. Be3 {[%emt 0:00:00]} O-O-O {[%emt 0:03:50]} 14. O-O-O {[%emt 0:00:00]} g6 {[%emt 0:02:54]} 15. f4 {[%emt 0:00:00]} Rh7 {[%emt 0:01:59]} 16. Rhf1 {[%emt 0:00:00]} Ng4 {[%emt 0:01:48]} 17. Bg1 {[%emt 0:00:00]} Bg7 {[%emt 0:06:52]} 18. f5 {[%emt 0:00:00]} Rdh8 {[%emt 0:03:33]} 19. Nge2 {[%emt 0:00:00]} Nxh2 {[%emt 0:06:38]} 20. fxg6 {[%emt 0:00:00]} fxg6 {[%emt 0:00:02]} 21. Bxh2 {[%emt 0:00:00]} Rxh2 {[%emt 0:02:58]} 22. Qxg6 {[%emt 0:00:00]} Bh6+ {[%emt 0:03:08]} 23. Nf4 {[%emt 0:00:00]} e5 {[%emt 0:01:49]} 24. Kb1 {[%emt 0:00:00]} Bxf4 {[%emt 0:01:33]} 25. Nd5 {[%emt 0:00:00]} Rxc2 {[%emt 0:01:40]} 26. Nxf4 {[%emt 0:00:00]} exf4 {[%emt 0:02:29]} 27. Rxf4 {[%emt 0:00:00]} Rhh2 {[%emt 0:03:45]} 0-1

[Event "2nd German Women BLS 2024-25"]
[Site "Germany"]
[Date "2025.01.26"]
[Round "4.12"]
[White "Albayrak, Aylin"]
[Black "Schardt, Madeleine"]
[Result "1-0"]
[Annotator "NA RC"]
[ECO "D44"]
[WhiteElo "1750"]
[BlackElo "1754"]
[PlyCount "115"]
[EventDate "2025.01.22"]
[EventType "team-tourn"]
[EventCountry "GER"]
[SourceTitle "playchess.com"]
[Source "ChessBase"]
[SourceQuality "1"]
[TimeControl "40/5400+30:1800+30"]

1. d4 {[%emt 0:00:03]} d5 {[%emt 0:00:11]} 2. c4 {[%emt 0:00:05]} c6 {[%emt 0:00:08]} 3. Nc3 {[%emt 0:00:13]} e6 {[%emt 0:00:20]} 4. Nf3 {[%emt 0:00:14]} Nf6 {[%emt 0:01:05]} 5. Bg5 {[%emt 0:01:35]} dxc4 {[%emt 0:00:14]} 6. Bxf6 {[%emt 0:03:27]} Qxf6 {[%emt 0:01:15]} 7. e4 {[%emt 0:00:17]} b5 {[%emt 0:03:04]} 8. a4 {[%emt 0:00:37]} Bb4 {[%emt 0:00:07]} 9. Be2 {[%emt 0:02:23]} Bb7 {[%emt 0:02:02]} 10. O-O {[%emt 0:00:41]} Bxc3 {[%emt 0:01:25]} 11. bxc3 {[%emt 0:00:15]} Nd7 {[%emt 0:02:00]} 12. Re1 {[%emt 0:03:06]} O-O {[%emt 0:01:26]} 13. Rb1 {[%emt 0:02:38]} a6 {[%emt 0:04:34]} 14. Bxc4 {[%emt 0:01:49]} Rfd8 {[%emt 0:03:53]} 15. axb5 {[%emt 0:02:08]} cxb5 {[%emt 0:00:30]} 16. Bd3 {[%emt 0:06:38]} Rac8 {[%emt 0:03:24]} 17. Qd2 {[%emt 0:01:22]} Nb6 {[%emt 0:08:30]} 18. Ng5 {[%emt 0:07:24]} Nc4 {[%emt 0:15:02]} 19. Qc1 {[%emt 0:02:24]} Qg6 {[%emt 0:12:03]} 20. Nh3 {[%emt 0:15:22]} e5 {[%emt 0:11:14]} 21. d5 {[%emt 0:02:09]} Bxd5 {[%emt 0:02:59]} 22. f4 {[%emt 0:07:39]} exf4 {[%emt 0:06:27]} 23. Nxf4 {[%emt 0:01:02]} Qb6+ {[%emt 0:00:06]} 24. Kh1 {[%emt 0:00:45]} Be6 {[%emt 0:00:32]} 25. Nd5 {[%emt 0:03:42]} Qb7 {[%emt 0:08:53]} 26. Nf4 {[%emt 0:13:25]} Ne5 {[%emt 0:03:48]} 27. Bf1 {[%emt 0:02:45]} Bc4 {[%emt 0:01:40]} 28. Qe3 {[%emt 0:02:34]} Ng6 {[%emt 0:03:54]} 29. Bxc4 {[%emt 0:04:45]} Rxc4 {[%emt 0:00:11]} 30. Nd5 {[%emt 0:01:12]} h6 {[%emt 0:02:10]} 31. Rbd1 {[%emt 0:00:38]} Re8 {[%emt 0:01:02]} 32. Qf3 {[%emt 0:00:59]} Ne7 {[%emt 0:01:07]} 33. Nf4 {[%emt 0:03:07]} Qc7 {[%emt 0:00:40]} 34. Re3 {[%emt 0:01:25]} Qe5 {[%emt 0:00:53]} 35. Rf1 {[%emt 0:00:59]} Qf6 {[%emt 0:00:34]} 36. Qe2 {[%emt 0:01:14]} Qg5 {[%emt 0:00:30]} 37. Rg3 {[%emt 0:00:41]} Qc5 {[%emt 0:00:27]} 38. Nh5 {[%emt 0:01:19]} Ng6 {[%emt 0:00:23]} 39. Qf3 {[%emt 0:00:44]} Rf8 {[%emt 0:00:33]} 40. e5 {[%emt 0:03:07]} Qe7 {[%emt 0:00:40]} 41. Qf5 {[%emt 0:04:27]} Rc5 {[%emt 0:09:54]} 42. Re1 {[%emt 0:03:56]} Re8 {[%emt 0:03:30]} 43. Rge3 {[%emt 0:05:42]} Rxe5 {[%emt 0:05:08]} 44. Rxe5 {[%emt 0:00:17]} Nxe5 {[%emt 0:00:05]} 45. h3 {[%emt 0:02:18]} f6 {[%emt 0:03:16]} 46. Nf4 {[%emt 0:02:02]} Qf7 {[%emt 0:02:09]} 47. Rd1 {[%emt 0:02:39]} g6 {[%emt 0:05:48]} 48. Qc2 {[%emt 0:00:52]} Kg7 {[%emt 0:00:31]} 49. Rd6 {[%emt 0:03:10]} a5 {[%emt 0:01:17]} 50. Qf2 {[%emt 0:00:53]} Re7 {[%emt 0:00:45]} 51. Nd5 {[%emt 0:00:41]} Re6 {[%emt 0:00:58]} 52. Rd8 {[%emt 0:02:27]} Nd3 {[%emt 0:01:16]} 53. Qd4 {[%emt 0:01:07]} Ne5 {[%emt 0:00:45]} 54. Ra8 {[%emt 0:00:43]} Nc6 {[%emt 0:00:23]} 55. Qc5 {[%emt 0:01:48]} Re5 {[%emt 0:01:10]} 56. Qxc6 {[%emt 0:01:27]} Rxd5 {[%emt 0:00:07]} 57. Rxa5 {[%emt 0:00:45]} Qe7 {[%emt 0:00:54]} 58. Qxd5 {[%emt 0:01:00]} 1-0